Cogmind - Beta 10.2 @@@ ROGUE MODE // 2021.06.17 @ 15:34:23 Player: the cat Result: Core destroyed Performance ------------- Evolutions (0) 0 Regions Visited (0) 0 Robots Destroyed (5) 25 Value Destroyed (80) 80 Prototype IDs (0) 0 Alien Tech Used (0) 0 Bonus (0) 0 TOTAL SCORE: 105 Bonus ------- None Cogmind --------- Core Integrity 0/250 Matter 264/300 Energy 100/100 System Corruption 34% Temperature Cool (0) Movement Core (150) Ox2 Location -11/Scrapyard Parts ------- > --- POWER (1) -------- Ion Engine > --- PROPULSION (2) --- Light Treads > --- UTILITY (2) ------ Seismic Analyzer > --- WEAPON (2) ------- Assault Rifle > --- INVENTORY (4) ---- (None) Peak State ------------ > --- POWER ------------ Ion Engine > --- PROPULSION ------- Light Treads Compact Wheel > --- UTILITY ---------- Improved Terrain Scanner Seismic Analyzer > --- WEAPON ----------- Assault Rifle Mining Laser > --- INVENTORY -------- (None) [Rating: 8] Favorites ----------- Power Ion Engine Engine Ion Engine Propulsion Light Treads Treads Light Treads Wheel Compact Wheel Utility Seismic Analyzer Device Improved Terrain Scanner Storage Small Storage Unit Processor Seismic Analyzer Weapon Mining Laser Ballistic Gun Assault Rifle Special Weapon Mining Laser Build | -11 ------- Run | Scr Slots Evolved . | . Power . | . Propulsion . | . Utility . | . Weapon . | . Parts Attached 11 | 11 Power 1 | 1 Engine 1 | 1 Core . | . Reactor . | . Propulsion 2 | 2 Treads 1 | 1 Leg . | . Wheel 1 | 1 Hover . | . Flight . | . Utility 3 | 3 Device 1 | 1 Storage 1 | 1 Processor 1 | 1 Hackware . | . Protection . | . Artifact . | . Weapon 5 | 5 Energy Gun . | . Energy Cannon . | . Ballistic Gun 3 | 3 Ballistic Cannon . | . Launcher . | . Special Weapon 2 | 2 Impact Weapon . | . Slashing Weapon . | . Piercing Weapon . | . Special Melee Weapon . | . Unidentified Prototypes . | . Parts Lost 4 | 4 Power . | . Propulsion 1 | 1 Utility 1 | 1 Weapon 2 | 2 Highest Loss Streak 3 | 3 Average Slot Usage (%) . | . Naked Turns . | . Heaviest Build 12 | 12 Greatest Support 20 | 20 Greatest Overweight (x) . | . Average Overweight (x) . | . Largest Inventory Capacity 6 | 6 Average Capacity 4 | 4 Most Carried 6 | 6 Average Carried . | . Final Capacity 4 | 4 Final Carried . | . Class Distribution -------------------- None Dominant Class ---------------- None Resources | -11 ----------- Run | Scr Matter Collected 344 | 344 Remotely . | . Salvage Created 127 | 127 Parts 15 | 15 Haulers Intercepted . | . Recyclers Shooed . | . Parts Field Recycled . | . Retrieved Matter . | . Parts Self-Destructed . | . Prevented . | . Kills | -11 ------- Run | Scr Combat Hostiles Destroyed 1 | 1 Guns 1 | 1 Classes Destroyed 3 | 3 Tunneler 3 | 3 Recycler 1 | 1 Demolisher 1 | 1 Best Kill Streak 4 | 4 Combat Bots Only 1 | 1 Max Kills in Single Turn 1 | 1 Gunslinging . | . Exploded . | . Melee . | . Uniques/NPCs Destroyed . | . Combat | -11 -------- Run | Scr Damage Taken 806 | 806 Core 250 | 250 Absorbed by Shields . | . Core Remaining (%) . | . Volleys Fired 61 | 61 Largest 2 | 2 Hottest 120 | 120 Shots Fired 70 | 70 Gun 19 | 19 Cannon . | . Launcher . | . Special 51 | 51 Kinetic 19 | 19 Thermal 51 | 51 Explosive . | . Electromagnetic . | . Robot Hit Streak 7 | 7 Robot Miss Streak 3 | 3 Penetration Max . | . Secondary Targets . | . Shots Hit Robots 12 | 12 Core Hits 7 | 7 Critical Hits . | . Critical Kills . | . Critical Parts Destroyed . | . Melee Attacks . | . Impact . | . Slashing . | . Piercing . | . Sneak Attacks . | . Combat Hostiles . | . Follow-up Attacks . | . Damage Inflicted 246 | 246 Guns 128 | 128 Cannons . | . Explosions . | . Melee . | . Ramming 70 | 70 Kinetic 128 | 128 Thermal 48 | 48 Explosive . | . Electromagnetic . | . Impact . | . Slashing . | . Piercing . | . Highest Corruption 34 | 34 Average Corruption 28 | 28 Corruption Purged . | . Effects 24 | 24 Message Errors 10 | 10 Matter Fused 5 | 5 Heat Flow Errors 4 | 4 Energy Discharges 1 | 1 Data Loss (minor) 2 | 2 Data Loss (major) 2 | 2 Overload Shots . | . Overflow Damage . | . Projectiles . | . Explosions . | . Melee . | . Knockbacks . | . Impact . | . Kinetic . | . Secondary . | . Self-Inflicted Damage 70 | 70 Shots . | . Rammed . | . Targets Rammed . | . Kicked . | . Crushed . | . Highest Temperature 257 | 257 Average Temperature 48 | 48 Received Heat Transfer . | . Siege Activations . | . Robots Corrupted . | . Combat Hostiles . | . Parts Fried . | . Impact Corruptions . | . Robots Melted . | . Combat Hostiles . | . Parts Melted . | . Heat Transferred 100 | 100 Parts Sabotaged . | . Parts Stolen . | . Parts Stripped . | . Power Chain Reactions . | . Missiles Intercepted . | . Alert | -11 ------- Run | Scr Peak Influence 30 | 30 Initial . | . Average 4 | 4 Maximum Alert Level . | . Low Security (%) 100 | 100 Level 1 . | . Level 2 . | . Level 3 . | . Level 4 . | . Level 5 . | . High Security . | . Max Security . | . Squads Dispatched . | . Investigation . | . Extermination . | . Reinforcement . | . Assault . | . Garrison . | . Intercept . | . Construction Impeded . | . Haulers Reinforced . | . Stealth | -11 --------- Run | Scr Distress Signals . | . Communications Jammed . | . Distress Signals . | . Times Spotted 1 | 1 Peak Tracking Total 1 | 1 Tactical Retreats . | . Traps | -11 ------- Run | Scr Traps Triggered . | . Indirectly . | . Trap Hack Attempts . | . Triggered . | . Disarmed . | . Reprogrammed . | . Reused . | . Traps Extracted . | . Installed . | . Triggered . | . Machines | -11 ---------- Run | Scr Machines Disabled . | . Max in Single Turn . | . Machines Sabotaged . | . Garrisons Compromised . | . Overloaded Fab Kills . | . Fab Network Shutdowns . | . Hacking | -11 --------- Run | Scr Machines Accessed . | . Terminals . | . Fabricators . | . Repair Stations . | . Recycling Units . | . Scanalyzers . | . Garrison Access . | . Total Hacks . | . Successful . | . Failed . | . Catastrophic . | . Database Lockouts . | . Manual . | . Terminals . | . Fabricators . | . Repair Stations . | . Recycling Units . | . Scanalyzers . | . Garrison Access . | . Terminal Hacks . | . Fabricator Hacks . | . Repair Station Hacks . | . Recycling Unit Hacks . | . Scanalyzer . | . Garrison Access Hacks . | . Unauthorized Hacks . | . Terminals . | . Fabricators . | . Repair Stations . | . Recycling Units . | . Scanalyzers . | . Garrison Access . | . Data Cores Recovered . | . Used . | . Hacking Detections . | . Full Trace Events . | . Feedback Events . | . Feedback Blocked . | . Robot Schematics Acquired . | . Robots Built . | . Matter . | . Time . | . Total Robot Build Rating . | . Part Schematics Acquired . | . Parts Built . | . Matter . | . Time . | . Total Part Build Rating . | . Parts Repaired . | . Time . | . Parts Recycled . | . Recycled Matter . | . Retrieved Matter . | . Retrieved Components . | . Parts Scanalyzed . | . Part Schematics Acquired . | . Parts Damaged . | . Bothacking | -11 ------------ Run | Scr Used RIF Installer . | . Robots Hacked . | . Non-combat . | . Combat . | . Robot Hacks Applied . | . Relay Couplers Released . | . Robots Rewired . | . Allies Hacked . | . Hacks Repelled . | . Allies | -11 -------- Run | Scr Total Allies . | . Largest Group . | . Highest-Rated Group . | . Highest-Rated Ally . | . Total Orders . | . Ally Attacks . | . Total Damage . | . Kills . | . Allies Corrupted . | . Allies Melted . | . Intel | -11 ------- Run | Scr Robot Analysis Total . | . Derelict Logs Recovered . | . Drone Launches . | . Drone Recoveries . | . Exploration | -11 ------------- Run | Scr Turns Passed 4356 | 4356 Spaces Moved 1995 | 1995 Core 5 | 5 Treads 2 | 2 Legs . | . Wheels 1988 | 1988 Hover . | . Flight . | . Fastest Speed 50 | 50 Average Speed 99 | 99 Slowest Speed 160 | 160 Overloaded Moves . | . Propulsion Burnouts . | . Robots Hopped . | . Cave-ins Triggered 1 | 1 Exploration Rate (%) 100 | 100 Regions Visited . Branch Regions . Pre-discovered Areas . | . Known Exits Taken . | . Unknown Exits Taken . | . Scrap Searched . | . Spaces Dug 16 | 16 Terrain Destroyed 20 | 20 Melee . | . Projectile 20 | 20 AOE . | . Terrain Rammed 35 | 35 Walls Destroyed . | . Machines Disabled . | . Actions | -11 --------- Run | Scr Total 4169 | 4169 Wait 2053 | 2053 Move 1995 | 1995 Hop . | . Pick Up 8 | 8 Fast Attach 6 | 6 Attach 4 | 4 Detach 1 | 1 Swap 1 | 1 Drop 6 | 6 Fire 61 | 61 Melee . | . Ram 34 | 34 Kick . | . Crush . | . Escape Stasis . | . Rewire . | . Trap . | . Miscellaneous . | . Route ------- -11/Scrapyard (discovered 1 exit: [*Mat]) History --------- Turn | Location | Event 15 | -11/Scrapyard | Discovered new exit (range 16) 1721 | -11/Scrapyard | Assembled infested the area 3909 | -11/Scrapyard | Crushed by falling debris 3915 | -11/Scrapyard | System corruption reached 10% 3924 | -11/Scrapyard | Core integrity fell below 50% 3940 | -11/Scrapyard | Lost 3 parts (1n1u1w) 3942 | -11/Scrapyard | Core integrity fell below 20% 3953 | -11/Scrapyard | System corruption reached 30% 4357 | -11/Scrapyard | Core destroyed Last Messages --------------- 04239_ System corrupted: Energy discharge (-33). 04255_ System corrupted: Heat flow error (+282). 04275_ CLJWA/FGPZ NE#VDMCNORWFI 04290_ Q8R>2Y9G,LUX YIGUWG8P%H>VU E67> / 04308_ %TKRNOIF3C=J|X 3QLNUF:FTH3&CA 04326_ System corrupted: Matter fused (-8). 04342_ System corrupted: Component data lost. 04346_ Slammed into Earth. 04346_ Destabilizing: Core damaged (-12). 04348_ Slammed into Earth. 04349_ Destabilizing: Core damaged (-5). 04351_ Slammed into Earth. 04351_ Destabilizing: System corrupted (+1). 04352_ Slammed into Earth. 04352_ Destabilizing: System corrupted (+2). 04354_ Slammed into Earth. 04355_ Destabilizing: System corrupted (+1). 04357_ Slammed into Earth. 04357_ Destabilizing: Core damaged (-5). 04357_ Destabilizing: Core damaged (-2). Map ----- +----------------------------------------------------+ | #?#?# # # # # ##### | | ????# # ######## ## | | ???######## # # # # # # ## | | ?????#??#?##### # # ######## # ## | | #??##??##?##### ######### ######## ## | | ???#????###### ####### ####### # ## | | ?????????##### ##?#### # | | ?#????#?#?##### ####### # | | ?????#??############# ########?############### | | ?#???##??###?######### ###################?# | | ???#?###?#########?### #?################?## | | ???????#?############ ##?################## | | #??????############### ##################### | | ????#??##########?### ####?######?######### | | ??????###?########### ###?###??##?#######?# | | ??????#?###??###?##### ####??#######?#?##### | | ??????####?#####?##?## ##?#?###??########?## | | ?????????##########?## #?###?###?#######?#?#### | | ??????????#?##?####### ####??###?##?######?###? | | ?????????##??#?###?### #####?#??#######???#?### | | ???????#?##?####??#?## #######?#####?########## | | ???????##########?#?## ###??#############?####? | | ???????????#####??#### ###?###?##?##?#????##### | | ???????#??###???###?## #??#######?##?####?##??# | | ???????????###?#?##########??#?###???#######?## | | ?????????###?##??#####@####????#??###?#?####??# | | ??????????#?#??#########??#?####???????######## | | ??????????####????##?#?#####?#####?????#???#??# | | ???????????#?#?###?###?####??#????#??????##?### | | ???????????????#???###??######?#??#??????###?## | | ??????????????#??#??#??#?#?#??##?#?????????#### | | ???????????#??#?##???####?#?????#????????????#? | | ??????????????#???????#??#?#???????#??????????? | | ?????????????#??????#????#??#?????????????????? | | ???????????????????????#??????????????????????? | | ??????????????????????????????????????????????? | | ??????????????????????????????????????????????? | | ???????????????#??????????????????????????????? | | ??????????????????????????????????????????????? | | ??????????????????????????????????????????????? | | ??????????????????????????????????????????????? | | ??????????????????????????????????????????????? | | ??????????????????????????????????????????????? | | ??????????????????????????????????????????????? | | ??????????????????????????????????????????????? | | ??????????????????????????????????????????????? | | | | | | | | | +----------------------------------------------------+ Best States ------------- Heat Dissipation 25 Energy Generation 10 Energy Capacity 250 Matter Stores 300 Matter Capacity 300 Sight Range 16 Terrain Scan Range 16 Terrain Scan Density 60 Evasion (%) 40 Recoil Reduction 1 Item Schematics ----------------- None Robot Schematics ------------------ None Fabricated ------------ Nothing Alien Tech Used ----------------- None Achievements -------------- Curiosity Killed The Cat Challenges ------------ None Game ------ Seed DimensionalRelaySuite Manual? 0 Play Time 00:23:38 Cumulative 121.5 hours Start 2021.06.17 @ 15:21:55 End 2021.06.17 @ 15:34:23 Sessions 0 Manual Loads 0 Difficulty Rogue Special Mode None Game No. 37 Rogue 20 Adventurer 17 Explorer 0 Win Type - Total 6 Types 5/0/0/1/0/0/0/0/0 Lore% 63 Gallery% 63 Achievement% 57 Wizard Run 0 Options --------- ASCII 0 Keyboard 0 Movement Arrows Keybinds 0 Fullscreen 1 Font 28/Dina Map View 72x54 Tactical HUD 1 Map Filters NONE Filters NONE Steam 1 RUN: 7a3d1bfe-796a-4a5d-97e8-faf409dbab4b